bitfinex-derivatives/quotes_ETHF0:USTF0_20250828
["timestamp","ask_amount","ask_price","bid_price","bid_amount"]
[1756420684666,0.53309,4508.1,4506.0,0.2815]
[1756420684878,0.3112,4508.1,4506.0,0.2815]
[1756420685079,0.3112,4507.9,4506.0,0.2815]
[1756420685678,0.22188,4507.8,4506.0,0.2815]
[1756420685979,0.86675824,4507.7,4506.0,0.2815]
[1756420686170,0.53308,4507.7,4506.0,0.2815]
[1756420686374,0.1948,4506.1,4506.0,0.4771]
[1756420686570,0.5007,4506.1,4506.0,0.4771]
[1756420687877,0.3059,4508.1,4506.0,0.1956]
[1756420688083,0.3059,4507.9,4506.1,0.3102]
[1756420688381,0.3059,4507.7,4506.1,0.3102]
[1756420688880,0.22188,4507.6,4506.1,0.3102]
[1756420689482,0.52778,4507.5,4506.1,0.3102]
[1756420689782,0.3059,4507.5,4506.1,0.3102]
[1756420689983,0.22189,4507.4,4506.1,0.3102]
[1756420690182,0.3059,4507.3,4506.1,0.3102]
[1756420696682,0.1916,4506.2,4506.1,0.3102]
[1756420696878,0.4975,4506.2,4506.1,0.3102]
[1756420697083,0.4975,4506.2,4506.1,0.5085]
[1756420697479,0.3059,4506.1,4505.2,0.3102]
[1756420701289,0.3059,4506.1,4506.0,0.5085]
[1756420701490,0.3059,4507.2,4506.0,0.1983]
[1756420701686,0.3059,4507.0,4506.1,0.3102]
[1756420706692,0.3059,4507.0,4506.9,0.1983]
[1756420706893,0.1916,4507.0,4506.9,0.5085]
[1756420707094,0.3059,4507.3,4507.2,0.1983]
[1756420707291,0.4975,4507.3,4507.2,0.5085]
[1756420707988,0.4975,4507.6,4507.5,0.5085]
[1756420708190,0.3059,4508.6,4507.6,0.3102]
[1756420708387,0.55666786,4508.5,4507.6,0.3102]
[1756420708587,0.1916,4507.7,4507.6,0.3102]
[1756420708788,0.4975,4507.7,4507.6,0.5085]
[1756420714294,0.3059,4508.7,4507.7,0.3102]
[1756420714595,0.3059,4508.4,4507.1,0.3102]
[1756420715001,0.3059,4508.4,4507.2,0.22183999]
[1756420715499,0.3059,4508.4,4507.3,0.3102]
[1756420718202,0.226,4509.3,4507.1,0.107]
[1756420718203,0.226,4509.6,4508.4,0.3091]
[1756420718399,0.5079,4508.5,4508.4,0.3091]
[1756420718703,0.5079,4508.5,4507.7,0.3091]
[1756420718905,0.1969,4508.5,4507.7,0.22183]
[1756420719104,0.5079,4508.4,4508.3,0.51]
[1756420724598,0.22548312,4510.7,4507.6,0.226]
[1756420724599,0.311,4510.2,4508.4,0.3091]
[1756420724805,0.311,4509.7,4508.4,0.3091]
[1756420725004,0.311,4509.5,4508.4,0.3091]
[1756420725604,0.22178,4509.4,4508.4,0.3091]
[1756420725806,0.5079,4509.3,4509.2,0.51]
[1756420727211,0.311,4510.2,4509.3,0.3091]
[1756420727605,0.1969,4509.4,4509.3,0.51]
[1756420727804,0.5079,4509.4,4509.3,0.51]
[1756420730710,0.1969,4509.4,4509.3,0.51]
[1756420731609,0.311,4511.2,4509.4,0.3091]
[1756420731811,0.311,4511.0,4509.4,0.3091]
[1756420732005,0.78069748,4511.1,4509.4,0.51]
[1756420732006,0.5079,4509.5,4509.4,0.51]
[1756420743314,0.1969,4509.0,4508.9,0.51]
[1756420743525,0.5079,4509.0,4508.9,0.51]
[1756420744619,0.5079,4509.0,4508.9,0.2009]
[1756420745018,0.5079,4509.0,4508.9,0.51]
[1756420746527,0.2831,4510.1,4509.0,0.3074]
[1756420749221,0.2831,4510.1,4508.4,0.226]
[1756420749222,0.4798,4510.1,4510.0,0.5094]
[1756420749428,0.2831,4510.0,4508.7,0.3074]
[1756420749627,0.2831,4510.0,4508.9,0.3074]
[1756420749828,0.4798,4510.0,4509.9,0.202]
[1756420751126,0.4798,4510.0,4509.9,0.5094]
[1756420751529,0.2831,4509.9,4508.9,0.3074]
[1756420751733,0.2831,4509.9,4509.1,0.3074]
[1756420752832,0.4798,4509.2,4509.1,0.5094]
[1756420754032,0.2831,4511.0,4509.2,0.3074]
[1756420754232,0.2831,4510.8,4509.2,0.3074]
[1756420754424,0.2831,4510.6,4509.2,0.3074]
[1756420754625,0.55716342,4510.5,4509.2,0.3074]
[1756420754826,0.84026342,4510.4,4509.2,0.3074]
[1756420755032,0.22172,4510.9,4509.2,0.3074]
[1756420755033,0.2831,4510.2,4509.2,0.3074]
[1756420755239,0.4798,4510.0,4509.9,0.5094]
[1756420755429,1.03746584,4510.0,4509.9,0.5094]
[1756420757738,1.03746584,4510.0,4509.9,0.202]
[1756420758139,1.03746584,4510.0,4509.9,0.5094]
[1756420758339,0.4798,4510.0,4509.9,0.5094]
[1756420758835,0.1967,4509.3,4509.2,0.341]
[1756420759142,0.4798,4509.3,4509.2,0.6484]
[1756420760138,1.19543288,4511.0,4509.2,0.6484]
[1756420760344,0.2831,4510.8,4509.3,0.3074]
[1756420760642,0.2831,4510.6,4509.3,0.3074]
[1756420760941,0.2831,4510.4,4509.3,0.3074]
[1756420761135,0.2831,4510.2,4509.3,0.3074]
[1756420761430,0.2831,4510.0,4509.3,0.3074]
[1756420762443,0.4798,4510.0,4509.9,0.202]
[1756420762644,1.19543288,4511.6,4510.2,0.202]
[1756420762847,0.84075629,4511.5,4510.3,0.3074]
[1756420763042,0.55765629,4511.4,4510.3,0.3074]
[1756420763237,0.2831,4511.2,4510.3,0.3074]
[1756420763441,0.1967,4510.4,4510.3,0.5094]
[1756420763643,0.4798,4510.4,4510.3,0.5094]
[1756420763943,0.2831,4511.7,4510.4,0.3074]
[1756420764141,0.7789275,4511.6,4510.4,0.3074]
[1756420764342,0.8403275,4511.5,4510.4,0.3074]
[1756420764642,0.2831,4511.3,4510.4,0.3074]
[1756420764842,0.5572275,4511.2,4510.4,0.3074]
[1756420765047,0.1967,4511.2,4511.1,0.5094]
[1756420765648,0.4798,4511.2,4511.1,0.5094]
[1756420766647,0.4798,4511.2,4511.1,0.202]
[1756420766843,0.4798,4511.2,4511.1,0.5094]
[1756420768850,0.2831,4512.3,4511.2,0.3074]
[1756420769045,0.4798,4511.3,4511.2,0.5094]
[1756420770253,0.069,4512.8,4511.3,0.3074]
[1756420770451,0.83853505,4512.7,4511.3,0.3074]
[1756420770644,0.069,4512.8,4511.3,0.3074]
[1756420770645,0.2831,4512.5,4511.3,0.3074]
[1756420772457,0.4798,4512.5,4510.6,0.99757]
[1756420772758,31.94,4513.3,4511.2,0.39898]
[1756420773055,0.2831,4513.1,4511.3,0.3074]
[1756420773450,0.2831,4513.2,4511.4,0.3074]
[1756420773652,0.2831,4513.0,4511.5,0.3074]
[1756420774144,0.22162,4512.9,4511.5,0.3074]
[1756420774351,0.2831,4512.8,4511.5,0.3074]
[1756420774549,0.50472,4512.8,4511.5,0.3074]
[1756420774756,0.2831,4512.8,4511.5,0.3074]
[1756420778261,0.50472,4512.8,4511.5,0.3074]
[1756420780062,0.2831,4512.8,4511.5,0.3074]
[1756420780563,0.2831,4512.8,4511.6,0.22162]
[1756420780763,0.2831,4512.8,4511.7,0.2977]
[1756420782362,0.5,4511.8,4511.7,0.5052]
[1756420782565,0.2052,4511.8,4511.7,0.5052]
[1756420782761,31.94,4513.3,4511.7,0.2075]
[1756420782961,0.51641,4513.2,4511.8,0.2977]
[1756420783466,0.5,4511.9,4511.8,0.5052]
[1756420783670,31.94,4513.3,4511.8,0.2075]
[1756420783859,0.51640001,4513.2,4511.9,0.2977]
[1756420784169,0.225,4513.8,4511.9,0.39891]
[1756420784467,0.2948,4513.6,4512.0,0.2977]
[1756420784665,0.22159,4513.7,4512.1,0.39889]
[1756420784967,0.22160001,4513.6,4512.2,0.2977]
[1756420785163,0.2948,4513.5,4512.2,0.2977]
[1756420785561,0.21,4514.0,4512.2,0.22159]
[1756420785763,0.2948,4513.9,4512.3,0.2977]
[1756420785962,0.51638001,4513.9,4512.3,0.2977]
[1756420786163,0.22158001,4513.8,4512.3,0.2977]
[1756420786364,0.2948,4513.7,4512.3,0.2977]
[1756420786565,0.51638001,4513.7,4512.3,0.2977]
[1756420786869,0.22158001,4513.6,4512.3,0.2977]
[1756420787067,0.51638001,4513.8,4512.3,0.2977]
[1756420787261,0.2948,4513.8,4512.3,0.2977]
[1756420787467,0.2052,4512.4,4512.3,0.5052]
[1756420787666,0.5,4512.4,4512.3,0.5052]
[1756420788366,0.2948,4514.3,4512.4,0.2977]
[1756420788572,0.2948,4514.1,4512.4,0.2977]
[1756420788873,0.2948,4513.9,4512.4,0.2977]
[1756420789165,0.2948,4514.0,4512.6,0.2977]
[1756420789568,0.51637,4514.0,4512.6,0.2977]
[1756420790972,0.5,4512.7,4512.6,0.5052]
[1756420795776,0.2052,4512.7,4512.6,0.5052]
[1756420797370,0.207,4514.3,4512.7,0.2977]
[1756420797572,0.84957702,4514.2,4512.7,0.2977]
[1756420797878,0.2948,4514.0,4512.7,0.2977]
[1756420798074,0.2948,4513.8,4512.7,0.2977]
[1756420798378,0.5,4512.8,4512.7,0.5052]
[1756420806875,0.225,4514.3,4512.7,0.5052]
[1756420807181,1.06609481,4514.2,4512.8,0.3022]
[1756420807381,0.289,4514.0,4512.9,0.39883]
[1756420807677,0.289,4514.6,4513.0,0.3022]
[1756420807878,0.289,4514.4,4513.0,0.3022]
[1756420808068,0.289,4514.2,4513.0,0.3022]
[1756420808269,0.289,4514.0,4513.0,0.3022]
[1756420808668,0.289,4513.8,4513.0,0.3022]
[1756420810384,0.4938,4513.1,4513.0,0.2018]
[1756420811576,0.4938,4513.1,4512.7,0.3022]
[1756420811879,0.4938,4513.1,4512.2,0.3022]
[1756420815082,0.05,4514.0,4512.0,1.96461568]
[1756420815388,0.4938,4512.1,4512.0,0.504]
[1756420816288,0.2048,4511.5,4511.4,0.504]
[1756420816592,0.4938,4511.5,4511.4,0.504]
[1756420817380,0.4938,4511.5,4511.4,0.2018]
[1756420817684,0.021,4513.0,4510.0,0.17962626]
[1756420817685,0.289,4511.3,4511.0,0.3022]
[1756420817890,0.289,4512.8,4511.3,0.3022]
[1756420818087,0.289,4512.6,4511.3,0.3022]
[1756420818290,0.289,4512.4,4511.3,0.3022]
[1756420818488,0.4938,4512.4,4512.3,0.2018]
[1756420818784,0.4938,4512.4,4512.3,0.504]
[1756420819689,0.4938,4512.4,4511.6,0.3022]
[1756420821790,0.22163,4512.3,4511.0,0.5272]
[1756420821991,0.289,4513.4,4511.1,0.3022]
[1756420822197,0.289,4513.2,4511.1,0.3022]
[1756420822399,0.55528914,4513.1,4511.1,0.3022]
[1756420822595,0.84428914,4513.0,4511.1,0.3022]
[1756420822795,0.4938,4511.2,4511.1,0.504]
[1756420824692,0.2048,4511.0,4510.9,32.2292]
[1756420824892,0.4938,4511.0,4510.9,32.4542]
[1756420826190,0.4938,4511.0,4510.9,32.2292]
[1756420826389,0.4938,4511.0,4510.9,31.927]
[1756420826894,0.4938,4511.0,4510.9,32.2292]
[1756420831802,0.4938,4511.0,4510.9,32.152]
[1756420832101,0.4938,4511.0,4510.9,32.4542]
[1756420832500,0.289,4511.3,4510.9,32.4542]
[1756420832699,0.22165,4512.4,4511.3,0.3022]
[1756420833004,0.4938,4512.3,4512.2,0.504]
[1756420833397,0.4938,4512.3,4511.9,0.3022]
[1756420833598,0.4938,4512.3,4511.7,0.3022]
[1756420835803,0.4938,4512.3,4512.2,0.2018]
[1756420836003,0.4938,4512.3,4512.2,0.504]
[1756420836204,0.4986,4511.8,4511.7,0.198]
[1756420836405,0.1968,4511.8,4511.7,0.198]
[1756420836604,0.1968,4511.8,4511.7,0.5064]
[1756420837006,0.4986,4511.8,4511.7,0.5064]
[1756420839902,0.3018,4513.5,4511.8,0.3084]
[1756420840098,0.145,4513.1,4511.8,0.3084]
[1756420840298,0.3018,4512.9,4511.8,0.3084]
[1756420840508,0.145,4513.1,4511.8,0.3084]
[1756420840509,0.55472795,4512.8,4511.8,0.3084]
[1756420840700,0.3018,4512.6,4511.8,0.3084]
[1756420840899,0.4986,4511.9,4511.8,0.5064]
[1756420841409,0.4986,4511.9,4511.7,0.225]
[1756420841610,0.1968,4511.9,4511.8,0.5064]
[1756420842507,0.4986,4511.9,4511.8,0.5064]
[1756420843509,0.4986,4511.9,4511.8,0.198]
[1756420843910,0.4986,4511.9,4511.8,0.5064]
[1756420845610,0.4986,4511.9,4511.8,0.198]
[1756420845811,0.4986,4511.9,4511.5,0.3084]
[1756420846706,0.4986,4511.9,4511.2,0.5334]
[1756420846901,0.1968,4511.3,4511.2,0.7314]
[1756420847106,0.4986,4511.3,4511.2,0.198]
[1756420847311,0.4986,4511.3,4511.2,0.5064]
[1756420849212,0.4986,4511.3,4511.2,0.198]
[1756420850013,0.3018,4511.2,4511.0,0.3084]
[1756420850208,0.4986,4511.1,4511.0,0.5334]
[1756420850714,0.4986,4511.1,4511.0,0.7314]
[1756420850909,0.3018,4511.0,4509.8,1.96461568]
[1756420851108,0.1968,4510.7,4510.6,0.198]
[1756420851308,0.1968,4510.7,4510.4,0.225]
[1756420851811,0.4986,4510.4,4510.3,0.198]
[1756420852013,0.4986,4510.2,4509.4,31.927]
[1756420852215,0.1968,4509.7,4509.6,0.198]
[1756420852415,0.4986,4509.7,4509.6,0.5064]
[1756420853804,1.19543288,4511.9,4509.6,0.198]
[1756420854010,1.08003644,4511.8,4509.7,0.3084]
[1756420854314,0.3018,4511.6,4509.7,0.3084]
[1756420854515,0.3018,4511.4,4509.7,0.3084]
[1756420854716,0.3018,4511.2,4509.7,0.3084]
[1756420854915,0.3018,4511.0,4509.7,0.3084]
[1756420855117,0.3018,4510.8,4509.7,0.3084]
[1756420856117,0.1968,4509.8,4509.7,0.5064]
[1756420856318,0.4986,4509.8,4509.7,0.5064]
[1756420861111,0.4986,4509.8,4509.7,0.7314]
[1756420861916,0.4986,4509.8,4509.7,0.5064]
[1756420862116,0.4986,4509.8,4509.7,0.7314]
[1756420864415,0.4986,4509.8,4509.7,0.5064]
[1756420864917,0.3018,4511.1,4509.8,0.3084]
[1756420865112,0.4986,4510.9,4509.8,0.3084]
[1756420865317,0.4986,4510.9,4510.8,0.5064]
[1756420866618,0.4986,4510.9,4510.4,0.225]
[1756420866818,0.4986,4510.9,4510.3,0.225]
[1756420867218,0.4986,4510.9,4510.8,0.4912]
[1756420867718,0.4986,4510.9,4510.3,0.225]
[1756420867719,0.4986,4510.9,4510.5,0.2961]
[1756420868016,0.3032,4510.8,4509.5,0.2961]
[1756420868321,0.3032,4512.0,4509.7,0.2961]
[1756420868522,0.3032,4511.8,4509.7,0.2961]
[1756420868722,0.3032,4511.6,4509.7,0.2961]
[1756420868921,0.3032,4511.4,4509.7,0.2961]
[1756420869123,0.3032,4511.2,4509.7,0.2961]
[1756420870420,0.3032,4511.2,4509.8,0.22171]
[1756420870624,0.4997,4511.2,4511.1,0.4912]
[1756420870918,0.1965,4511.3,4511.2,0.2961]
[1756420871123,0.4997,4511.3,4511.2,0.4912]
[1756420873722,0.4997,4511.2,4511.1,0.4912]
[1756420873921,0.4997,4511.2,4510.5,0.2961]
[1756420874321,0.4997,4511.2,4511.1,0.4912]
[1756420875420,0.4997,4511.2,4509.2,1.96461568]
[1756420875624,0.3032,4512.0,4509.6,0.2961]
[1756420875820,0.3032,4511.8,4509.6,0.2961]
[1756420876124,0.3032,4511.6,4509.7,0.22169]
[1756420876318,0.55583154,4511.5,4509.7,0.22169]
[1756420876519,0.55583154,4511.4,4509.8,0.2961]
[1756420876725,0.55583154,4511.3,4509.8,0.2961]
[1756420876924,0.3032,4511.2,4509.9,0.225]
[1756420877125,0.3032,4511.2,4510.0,0.2961]
[1756420877326,0.162,4511.7,4510.0,0.2217]
[1756420877628,0.3032,4511.5,4510.1,0.2961]
[1756420877820,0.3032,4511.3,4510.1,0.2961]
[1756420878527,0.3032,4511.1,4510.1,0.2961]
[1756420880530,0.4997,4511.1,4511.0,0.1951]
[1756420880828,0.4997,4511.1,4511.0,0.4912]
[1756420881926,0.225,4511.9,4510.6,0.2961]
[1756420881927,0.1965,4510.7,4510.6,0.2961]
[1756420882132,0.4997,4510.7,4510.6,0.4912]
[1756420884027,0.4997,4510.7,4509.4,31.927]
[1756420884330,0.3032,4510.6,4509.6,0.2961]
[1756420884929,0.3032,4510.6,4509.7,0.22172]
[1756420885131,0.3032,4510.6,4509.8,0.2961]
[1756420887023,0.3032,4510.6,4510.0,0.2961]
[1756420887625,0.4997,4510.6,4510.5,0.4912]
[1756420887825,0.4997,4510.6,4509.9,0.225]
[1756420887826,0.3772,4511.9,4510.6,0.2961]
[1756420888132,0.4997,4511.7,4511.6,0.4912]
[1756420888430,1.05689786,4511.7,4511.6,0.4912]
[1756420888626,1.05689786,4511.7,4509.7,0.39912]
[1756420888828,0.86039786,4511.6,4509.8,0.5211]
[1756420889035,0.86039786,4511.5,4509.9,0.2961]
[1756420889331,0.4997,4511.4,4511.1,0.2961]
[1756420889732,0.4997,4511.4,4510.6,0.2961]
[1756420891832,0.4997,4511.4,4511.3,0.4912]
[1756420892231,1.05692343,4511.4,4511.3,0.4912]
[1756420894028,1.05692343,4511.4,4511.0,0.2961]
[1756420894232,0.3032,4511.2,4510.3,0.088]
[1756420894431,0.1965,4510.4,4510.3,0.5792]
[1756420895235,0.4997,4510.4,4510.3,0.4912]
[1756420896130,0.4997,4510.4,4509.8,0.2848]
[1756420902633,0.4997,4510.4,4510.3,0.2076]
[1756420902835,0.4997,4510.4,4510.3,0.4924]
[1756420904242,1.19543288,4511.7,4510.3,0.4924]
[1756420904437,0.2037,4510.5,4510.4,0.2848]
[1756420904642,0.2037,4510.5,4510.4,0.4924]
[1756420904943,0.4865,4510.5,4510.4,0.4924]
[1756420905435,1.19543288,4511.7,4510.4,0.4924]
[1756420905642,0.84048494,4511.6,4510.5,0.2848]
[1756420905842,0.4865,4511.4,4511.3,0.2076]
[1756420906036,0.2828,4511.3,4509.6,0.2848]
[1756420906240,0.2828,4511.1,4509.8,0.2848]
[1756420906942,0.2828,4511.1,4510.0,0.2848]
[1756420907532,0.2828,4511.1,4510.1,0.2217]
[1756420907738,0.2828,4511.1,4510.2,0.2848]
[1756420908940,0.2828,4511.0,4510.3,0.2848]
[1756420910443,0.2037,4510.4,4510.3,0.4924]
[1756420910645,0.4865,4510.4,4510.3,0.4924]
[1756420912147,0.4865,4510.4,4510.3,0.2076]
[1756420912749,0.4865,4510.4,4510.3,0.4924]
[1756420913944,0.4865,4510.4,4509.4,1.96461568]
[1756420914145,31.934,4512.3,4508.8,31.935]
[1756420914146,0.2037,4509.9,4509.8,0.4326]
[1756420914350,0.4865,4509.9,4509.8,0.4326]
[1756420914847,0.4865,4509.9,4509.8,0.7174]
[1756420917245,0.4865,4509.9,4509.8,0.4924]
[1756420920249,0.2828,4509.8,4508.9,0.2848]
[1756420920450,0.2828,4511.2,4509.1,0.2848]
[1756420920650,0.4865,4509.2,4509.1,0.7174]
[1756420925259,0.2828,4511.1,4509.1,0.4326]
[1756420925460,0.2828,4510.9,4509.2,0.2848]
[1756420925758,0.2828,4510.7,4509.3,0.2848]
[1756420926058,0.2828,4510.5,4509.3,0.2848]
[1756420926258,0.2953,4510.3,4509.3,0.2848]
[1756420927463,0.2953,4511.0,4509.4,0.292]
[1756420927658,0.85323932,4510.9,4509.5,0.39914]
[1756420927953,0.2953,4510.7,4509.6,0.292]
[1756420928256,0.4931,4510.5,4510.4,0.489]
[1756420929050,0.2953,4511.5,4510.4,0.197]
[1756420929254,0.4931,4510.6,4510.5,0.489]
[1756420929757,0.4931,4510.6,4509.7,0.39912]
[1756420929959,0.2953,4510.5,4510.0,0.292]
[1756420930259,0.2953,4511.5,4510.1,0.292]
[1756420930453,0.2953,4511.3,4510.1,0.292]
[1756420930650,0.1978,4510.2,4510.1,0.489]
[1756420930857,0.4931,4510.2,4510.1,0.489]
[1756420933061,0.2953,4511.6,4510.2,0.292]
[1756420933356,0.2953,4511.4,4510.2,0.292]
[1756420933558,0.1978,4510.3,4510.2,0.489]
[1756420933752,0.4931,4510.3,4510.2,0.489]
[1756420937161,0.4931,4510.3,4510.2,0.197]
[1756420937761,0.4931,4510.3,4510.2,0.489]
[1756420938463,0.4931,4510.3,4510.2,0.197]
[1756420939061,0.4931,4510.3,4510.2,0.489]
[1756420939657,0.4931,4510.3,4509.7,0.225]
[1756420940165,0.4931,4510.3,4510.2,0.489]
[1756420941564,0.4931,4510.3,4509.9,0.292]
[1756420941855,0.4931,4510.3,4509.5,0.292]
[1756420943253,0.71483,4510.3,4509.5,0.292]
[1756420943452,0.2953,4510.2,4508.9,0.292]
[1756420944063,0.51705,4510.2,4508.9,0.292]
[1756420944259,0.1978,4509.0,4508.9,0.489]
[1756420944466,0.4931,4509.0,4508.9,0.489]
[1756420947357,0.2953,4508.9,4507.9,0.292]
[1756420947557,0.2953,4508.9,4508.1,0.225]
[1756420947764,0.4931,4508.3,4508.2,0.489]
[1756420950566,0.2953,4508.6,4508.2,0.489]
[1756420950771,0.1978,4508.4,4508.3,0.489]
[1756420951064,0.4931,4508.4,4508.3,0.489]
[1756420957370,0.3003,4510.2,4508.3,0.197]
[1756420957668,0.2032,4508.5,4508.4,0.2902]
[1756420957873,0.5035,4508.5,4508.4,0.4829]
[1756420973187,0.3003,4510.0,4508.5,0.2902]
[1756420973389,0.3003,4509.8,4508.5,0.2902]
[1756420973587,0.3003,4509.6,4508.5,0.2902]
[1756420973786,0.3003,4509.4,4508.5,0.2902]
[1756420974190,0.5035,4509.2,4509.1,0.1927]
[1756420974388,0.5035,4509.2,4509.1,0.4829]
[1756420977292,1.06218735,4509.2,4509.1,0.4829]
[1756420980905,1.06218735,4509.2,4507.9,0.39928]
[1756420981105,0.3003,4509.1,4508.1,0.2902]
[1756420981700,0.5035,4508.2,4508.1,0.4829]
[1756420983205,1.19543288,4510.0,4508.1,0.4829]
[1756420983509,0.3003,4509.8,4508.2,0.2902]
[1756420983705,0.3003,4509.6,4508.2,0.2902]
[1756420983907,0.3003,4509.4,4508.2,0.2902]
[1756420984206,0.3003,4509.2,4508.2,0.2902]
[1756420984410,0.3003,4509.0,4508.2,0.2902]
[1756420987505,0.5035,4509.0,4508.9,0.5025]
[1756420988604,0.2032,4509.0,4507.8,0.3098]
[1756420988909,0.3115,4508.9,4508.2,0.3098]
[1756420989310,1.42043288,4510.0,4508.2,0.2218]
[1756420989501,0.87021346,4509.9,4508.3,0.3098]
[1756420989705,0.55871346,4509.8,4508.3,0.3098]
[1756420989906,0.3115,4509.6,4508.3,0.3098]
[1756420990110,0.3115,4509.4,4508.3,0.3098]
[1756420990305,0.3115,4509.2,4508.3,0.3098]
[1756420990614,0.3115,4509.0,4508.3,0.3098]
[1756420993917,0.5161,4509.0,4508.9,0.4994]
[1756420995013,0.5161,4509.0,4508.9,0.1896]
[1756420995415,0.5161,4509.0,4507.9,0.225]
[1756420995416,0.2046,4509.0,4507.9,0.225]
[1756420995723,0.55679511,4508.9,4508.0,0.3098]
[1756420996013,0.5161,4508.1,4508.0,0.4994]
[1756420998622,0.5161,4508.1,4507.7,0.3098]
[1756420998923,0.5161,4508.1,4507.5,0.3098]
[1756421007917,0.5161,4506.9,4506.8,0.4994]
[1756421008523,0.5161,4506.9,4506.3,0.3098]
[1756421009426,0.5161,4506.9,4506.8,0.1896]
[1756421009626,0.5161,4506.9,4506.8,0.4994]
[1756421011223,0.5161,4506.9,4506.4,0.3098]
[1756421011426,0.5161,4506.9,4506.0,0.225]
[1756421011730,0.5161,4506.9,4506.1,0.3098]
[1756421012827,0.738,4506.9,4506.1,0.3098]
[1756421013630,0.2219,4506.8,4505.6,0.7244]
[1756421013828,0.3115,4507.8,4505.7,0.3098]
[1756421014024,0.3115,4507.6,4505.7,0.3098]
[1756421014230,0.3115,4507.4,4505.7,0.3098]
[1756421014629,0.77764226,4507.3,4505.7,0.3098]
[1756421014927,0.2046,4505.8,4505.7,0.1896]
[1756421015132,0.2046,4505.8,4505.7,0.4994]
[1756421015632,0.5161,4505.8,4505.7,0.4994]
[1756421021330,0.5161,4505.8,4505.7,0.1896]
[1756421021532,0.5161,4505.8,4505.5,0.3031]
[1756421021727,0.5161,4505.8,4504.1,0.50174804]
[1756421021932,0.3003,4505.7,4504.3,0.3031]
[1756421022335,0.3003,4505.7,4504.4,0.225]
[1756421022635,0.3003,4505.7,4504.5,0.3031]
[1756421024634,0.029,4507.1,4504.5,0.22197]
[1756421024937,1.07675378,4507.0,4504.6,0.3031]
[1756421025236,0.3003,4506.8,4504.6,0.3031]
[1756421025732,0.3003,4506.6,4504.6,0.3031]
[1756421026335,0.22195,4506.5,4504.6,0.3031]
[1756421026532,0.3003,4506.4,4504.6,0.3031]
[1756421026734,0.52225,4506.4,4504.6,0.3031]
[1756421026928,0.22195,4506.3,4504.6,0.3031]
[1756421027127,0.3003,4507.0,4504.6,0.3031]
[1756421027334,0.3003,4506.8,4504.6,0.3031]
[1756421027631,0.3003,4506.6,4504.6,0.3031]
[1756421027937,0.3003,4506.4,4504.6,0.3031]
[1756421028129,0.1979,4504.7,4504.6,0.5071]
[1756421028335,0.4982,4504.7,4504.6,0.5071]
[1756421028730,0.3003,4506.0,4504.7,0.3031]
[1756421029039,0.52227,4506.0,4504.7,0.3031]
[1756421030237,0.3003,4506.0,4504.7,0.3031]
[1756421031337,0.4982,4504.8,4504.7,0.5071]
[1756421031541,0.3003,4505.9,4504.8,0.3031]
[1756421037640,0.4982,4505.9,4505.8,0.204]
[1756421037845,32.189,4507.1,4505.8,0.204]
[1756421038044,32.189,4507.1,4504.5,0.99896]
[1756421038045,1.07843232,4507.0,4505.9,0.3031]
[1756421038344,0.3003,4506.8,4505.9,0.3031]
[1756421038646,0.4982,4506.6,4506.5,0.5071]
[1756421048545,0.2977,4507.3,4506.6,0.2817]
[1756421048745,0.4975,4507.1,4507.0,0.1978]
[1756421048946,0.4975,4507.1,4507.0,0.4795]
[1756421061050,0.2977,4507.0,4505.5,0.056]
[1756421061256,0.2977,4507.7,4505.7,0.2817]
[1756421061459,0.5568766,4507.6,4505.7,0.2817]
[1756421061760,0.8545766,4507.5,4505.9,0.2817]
[1756421061954,0.5568766,4507.4,4505.9,0.2817]
[1756421062150,0.5568766,4507.4,4506.0,0.22189]
[1756421062355,0.8545766,4507.3,4506.1,0.2817]
[1756421062658,0.2977,4507.7,4506.2,0.2817]
[1756421062858,0.2977,4507.5,4506.2,0.2817]
[1756421063061,0.2977,4507.3,4506.2,0.2817]
[1756421063261,0.55713532,4507.2,4506.2,0.2817]
[1756421063555,0.2977,4507.1,4506.3,0.22189]
[1756421063755,0.4975,4506.5,4506.4,0.4795]
[1756421068868,0.4975,4506.6,4506.5,0.4795]
[1756421075469,1.19543288,4507.8,4506.5,0.1978]
[1756421075674,0.51957,4507.7,4506.6,0.2817]
[1756421075874,0.55863656,4507.6,4506.6,0.2817]
[1756421076074,0.85633656,4507.5,4506.6,0.2817]
[1756421076268,0.55863656,4507.4,4506.6,0.2817]
[1756421076465,0.55863656,4507.3,4507.2,0.2001]
[1756421076665,1.19543288,4508.3,4507.4,0.2001]
[1756421076865,0.84441109,4508.2,4507.5,0.2832]
[1756421077170,0.4865,4508.2,4508.1,0.4833]
[1756421077772,0.4865,4508.2,4508.1,0.2001]
[1756421077974,1.044534,4508.2,4508.1,0.2001]
[1756421078177,1.044534,4508.2,4508.1,0.4833]
[1756421082290,0.4865,4508.2,4508.1,0.4833]
[1756421085395,0.2858,4509.2,4508.2,0.2832]
[1756421085591,0.2858,4509.0,4508.2,0.2832]
[1756421085792,0.55664325,4508.9,4508.2,0.2832]
[1756421085998,0.2858,4508.8,4508.2,0.2832]
[1756421086294,0.4865,4508.3,4508.2,0.4833]
[1756421087796,0.2858,4508.2,4507.0,0.2832]
[1756421088091,0.2858,4508.2,4507.4,0.2832]